[Event "ENG-ch Women 2019"]
[Site "Hull"]
[Date "2019.09.01"]
[Round "5.11"]
[White "Headlong, Georgia"]
[Black "Boztas, Lana"]
[Result "1-0"]
[ECO "B25"]
[WhiteElo "1482"]
[BlackElo "1475"]
[Annotator "NA"]
[PlyCount "107"]
[EventDate "2019.08.30"]
[EventType "swiss"]
[EventCountry "ENG"]
[SourceTitle "playchess.com"]
[Source "ChessBase"]
[SourceQuality "1"]
[TimeControl "5400+30"]

1. e4 {[%emt 0:00:00]} c5 {[%emt 0:00:00]} 2. Nc3 {[%emt 0:00:00]} Nc6 {[%emt 0:00:00]} 3. g3 {[%emt 0:00:03]} g6 {[%emt 0:00:04]} 4. Bg2 {[%emt 0:00:07]} Bg7 {[%emt 0:00:05]} 5. d3 {[%emt 0:00:13]} d6 {[%emt 0:00:15]} 6. Be3 {[%emt 0:00:30]} Nf6 {[%emt 0:00:40]} 7. h3 {[%emt 0:00:25]} O-O {[%emt 0:00:20]} 8. Nge2 {[%emt 0:01:05]} Bd7 {[%emt 0:01:44]} 9. O-O {[%emt 0:00:57]} Qc8 {[%emt 0:00:20]} 10. g4 {[%emt 0:01:43]} h5 {[%emt 0:03:46]} 11. f3 {[%emt 0:02:18]} hxg4 {[%emt 0:00:20]} 12. hxg4 {[%emt 0:00:48]} Ne5 {[%emt 0:01:09]} 13. Qd2 {[%emt 0:07:31]} Bxg4 {[%emt 0:06:46]} 14. fxg4 {[%emt 0:01:52]} Nexg4 {[%emt 0:02:08]} 15. Bg5 {[%emt 0:02:36]} Re8 {[%emt 0:01:20]} 16. Bh3 {[%emt 0:03:04]} Qc7 {[%emt 0:02:36]} 17. Qf4 {[%emt 0:05:02]} Ne5 {[%emt 0:00:45]} 18. Nd5 {[%emt 0:07:10]} Nxd5 {[%emt 0:00:23]} 19. exd5 {[%emt 0:00:18]} b5 {[%emt 0:03:33]} 20. d4 {[%emt 0:04:00]} cxd4 {[%emt 0:00:24]} 21. Nxd4 {[%emt 0:00:15]} Qc5 {[%emt 0:00:30]} 22. Bg2 {[%emt 0:02:28]} Rac8 {[%emt 0:05:47]} 23. Kh1 {[%emt 0:04:16]} Rc7 {[%emt 0:00:32]} 24. c3 {[%emt 0:06:00]} Rf8 {[%emt 0:02:51]} 25. Nc6 {[%emt 0:02:50]} Nxc6 {[%emt 0:05:02]} 26. dxc6 {[%emt 0:00:12]} Be5 {[%emt 0:00:43]} 27. Qf2 {[%emt 0:05:31]} Qxf2 {[%emt 0:00:43]} 28. Rxf2 {[%emt 0:00:11]} Kg7 {[%emt 0:00:32]} 29. Bf4 {[%emt 0:01:37]} Rh8+ {[%emt 0:00:29]} 30. Kg1 {[%emt 0:00:12]} Rh5 {[%emt 0:02:59]} 31. Raf1 {[%emt 0:03:35]} f6 {[%emt 0:00:56]} 32. Re2 {[%emt 0:06:04]} Kf8 {[%emt 0:04:37]} 33. Bxe5 {[%emt 0:02:25]} dxe5 {[%emt 0:00:24]} 34. Rd1 {[%emt 0:03:05]} Rg5 {[%emt 0:00:34]} 35. Kf1 {[%emt 0:00:31]} Rf5+ {[%emt 0:00:58]} 36. Ke1 {[%emt 0:00:12]} Ke8 {[%emt 0:00:30]} 37. Red2 {[%emt 0:00:31]} Rf4 {[%emt 0:01:37]} 38. Rd8+ {[%emt 0:00:30]} Kf7 {[%emt 0:00:14]} 39. R1d7 {[%emt 0:03:07]} Rxd7 {[%emt 0:01:22]} 40. Rxd7 {[%emt 0:01:30]} Ke8 {[%emt 0:00:23]} 41. Rxa7 {[%emt 0:00:40]} Rc4 {[%emt 0:00:22]} 42. Kd2 {[%emt 0:02:39]} e4 {[%emt 0:00:23]} 43. Bf1 {[%emt 0:02:05]} Rc5 {[%emt 0:00:14]} 44. a4 {[%emt 0:01:40]} bxa4 {[%emt 0:00:44]} 45. Rxa4 {[%emt 0:00:37]} Kd8 {[%emt 0:00:54]} 46. Ra6 {[%emt 0:01:12]} Kc7 {[%emt 0:00:19]} 47. Bg2 {[%emt 0:01:30]} f5 {[%emt 0:00:13]} 48. Ke3 {[%emt 0:01:16]} e5 {[%emt 0:00:27]} 49. Ra7+ {[%emt 0:04:13]} Kb6 {[%emt 0:01:32]} 50. Rb7+ {[%emt 0:01:24]} Kxc6 {[%emt 0:01:03]} 51. Rg7 {[%emt 0:00:26]} Rd5 {[%emt 0:01:09]} 52. Rxg6+ {[%emt 0:00:35]} Kc5 {[%emt 0:00:05]} 53. Bf1 {[%emt 0:01:20]} Rd1 {[%emt 0:00:53]} 54. b4+ {[%emt 0:00:33]} 1-0

[Event "ENG-ch Women 2019"]
[Site "Hull"]
[Date "2019.09.01"]
[Round "5.12"]
[White "Gamal, Alaa"]
[Black "Jayawarna, Thisumi"]
[Result "1-0"]
[ECO "A45"]
[WhiteElo "1762"]
[BlackElo "1125"]
[Annotator "NA"]
[PlyCount "157"]
[EventDate "2019.08.30"]
[EventType "swiss"]
[EventCountry "ENG"]
[SourceTitle "playchess.com"]
[Source "ChessBase"]
[SourceQuality "1"]
[TimeControl "5400+30"]

1. d4 {[%emt 0:00:00]} Nf6 {[%emt 0:00:00]} 2. g3 {[%emt 0:00:00]} c5 {[%emt 0:00:24]} 3. dxc5 {[%emt 0:00:48]} Qa5+ {[%emt 0:00:12]} 4. Bd2 {[%emt 0:00:58]} Qxc5 {[%emt 0:00:10]} 5. Bg2 {[%emt 0:00:15]} g6 {[%emt 0:00:15]} 6. e3 {[%emt 0:02:51]} Bg7 {[%emt 0:00:50]} 7. Bc3 {[%emt 0:00:11]} d6 {[%emt 0:01:37]} 8. Ne2 {[%emt 0:00:12]} Qc7 {[%emt 0:02:23]} 9. O-O {[%emt 0:00:16]} Bd7 {[%emt 0:00:44]} 10. Nd2 {[%emt 0:00:07]} Bc6 {[%emt 0:01:32]} 11. e4 {[%emt 0:01:27]} Nbd7 {[%emt 0:01:39]} 12. Nd4 {[%emt 0:00:09]} Ne5 {[%emt 0:02:51]} 13. Nxc6 {[%emt 0:00:29]} Nxc6 {[%emt 0:00:44]} 14. Re1 {[%emt 0:00:31]} O-O {[%emt 0:05:04]} 15. Nf3 {[%emt 0:00:07]} Rad8 {[%emt 0:03:25]} 16. Qe2 {[%emt 0:00:28]} e6 {[%emt 0:14:04]} 17. e5 {[%emt 0:03:51]} dxe5 {[%emt 0:03:09]} 18. Nxe5 {[%emt 0:02:08]} Nxe5 {[%emt 0:01:00]} 19. Bxe5 {[%emt 0:00:29]} Qe7 {[%emt 0:02:12]} 20. Rad1 {[%emt 0:00:37]} Rfe8 {[%emt 0:07:51]} 21. Qb5 {[%emt 0:01:23]} b6 {[%emt 0:02:58]} 22. Bc6 {[%emt 0:01:49]} Rf8 {[%emt 0:00:42]} 23. b4 {[%emt 0:04:58]} Rxd1 {[%emt 0:01:56]} 24. Rxd1 {[%emt 0:00:04]} Rd8 {[%emt 0:00:07]} 25. Qe2 {[%emt 0:02:44]} Rxd1+ {[%emt 0:06:09]} 26. Qxd1 {[%emt 0:00:03]} Nh5 {[%emt 0:02:26]} 27. Bb8 {[%emt 0:02:33]} Qxb4 {[%emt 0:05:02]} 28. Bxa7 {[%emt 0:05:54]} Bd4 {[%emt 0:04:50]} 29. Bf3 {[%emt 0:02:41]} Qc5 {[%emt 0:03:46]} 30. Qd2 {[%emt 0:01:17]} Qe5 {[%emt 0:08:03]} 31. Qb4 {[%emt 0:03:32]} Nxg3 {[%emt 0:06:48]} 32. Bxb6 {[%emt 0:05:34]} Bxb6 {[%emt 0:02:43]} 33. Qxb6 {[%emt 0:00:09]} Ne2+ {[%emt 0:01:00]} 34. Bxe2 {[%emt 0:05:39]} Qxe2 {[%emt 0:00:21]} 35. Qd8+ {[%emt 0:00:07]} Kg7 {[%emt 0:00:17]} 36. Qd3 {[%emt 0:00:02]} Qg4+ {[%emt 0:00:27]} 37. Kh1 {[%emt 0:00:09]} Qa4 {[%emt 0:01:54]} 38. a3 {[%emt 0:00:51]} Qc6+ {[%emt 0:02:10]} 39. f3 {[%emt 0:00:54]} Qb6 {[%emt 0:02:52]} 40. c4 {[%emt 0:00:57]} Qf2 {[%emt 0:01:01]} 41. Qd1 {[%emt 0:00:46]} Qe3 {[%emt 0:02:12]} 42. a4 {[%emt 0:24:26]} Qc3 {[%emt 0:01:33]} 43. Qe2 {[%emt 0:03:06]} Qb4 {[%emt 0:00:39]} 44. Qe5+ {[%emt 0:00:51]} Kg8 {[%emt 0:00:26]} 45. Qb5 {[%emt 0:03:07]} Qe1+ {[%emt 0:00:28]} 46. Kg2 {[%emt 0:00:01]} Qe2+ {[%emt 0:00:27]} 47. Kg3 {[%emt 0:00:01]} Qe1+ {[%emt 0:00:14]} 48. Kf4 {[%emt 0:03:06]} Qd2+ {[%emt 0:00:41]} 49. Ke5 {[%emt 0:11:22]} Qe3+ {[%emt 0:00:37]} 50. Kd6 {[%emt 0:01:08]} Qf4+ {[%emt 0:00:59]} 51. Kd7 {[%emt 0:01:26]} Qd4+ {[%emt 0:00:31]} 52. Kc6 {[%emt 0:01:07]} Qd8 {[%emt 0:00:36]} 53. Qb7 {[%emt 0:00:46]} Qe8+ {[%emt 0:00:21]} 54. Qd7 {[%emt 0:01:16]} Qa8+ {[%emt 0:00:08]} 55. Kb6 {[%emt 0:01:58]} Qb8+ {[%emt 0:00:21]} 56. Qb7 {[%emt 0:00:20]} Qd8+ {[%emt 0:00:42]} 57. Kb5 {[%emt 0:00:36]} Qe8+ {[%emt 0:00:11]} 58. Kb4 {[%emt 0:00:23]} Qf8+ {[%emt 0:00:37]} 59. c5 Qd8 {[%emt 0:00:42]} 60. c6 {[%emt 0:00:58]} Qd4+ {[%emt 0:00:12]} 61. Kb5 {[%emt 0:00:01]} Qd5+ {[%emt 0:00:18]} 62. Ka6 {[%emt 0:00:37]} Qc4+ {[%emt 0:00:55]} 63. Qb5 {[%emt 0:00:02]} Qf4 {[%emt 0:01:02]} 64. Kb7 {[%emt 0:00:18]} Qxf3 {[%emt 0:00:42]} 65. Kb8 {[%emt 0:00:12]} Qf4+ {[%emt 0:00:12]} 66. c7 {[%emt 0:00:03]} Qd6 {[%emt 0:00:28]} 67. a5 {[%emt 0:00:22]} Kf8 {[%emt 0:00:35]} 68. a6 {[%emt 0:00:09]} Ke7 {[%emt 0:00:23]} 69. a7 {[%emt 0:00:16]} Qxh2 {[%emt 0:01:02]} 70. a8=Q {[%emt 0:00:17]} Qd6 {[%emt 0:00:35]} 71. Qac6 {[%emt 0:00:20]} Qf4 {[%emt 0:00:31]} 72. Kb7 {[%emt 0:00:03]} Qxc7+ {[%emt 0:00:16]} 73. Qxc7+ {[%emt 0:00:10]} Kf6 {[%emt 0:00:09]} 74. Qb2+ {[%emt 0:00:11]} Kf5 {[%emt 0:00:19]} 75. Qxf7+ {[%emt 0:00:06]} Kg5 {[%emt 0:00:13]} 76. Qd2+ {[%emt 0:00:04]} Kh5 {[%emt 0:00:27]} 77. Qdf4 {[%emt 0:00:18]} h6 {[%emt 0:00:41]} 78. Qg3 {[%emt 0:00:17]} e5 {[%emt 0:00:11]} 79. Qfxg6# {[%emt 0:00:03]} 1-0

[Event "ENG-ch Women 2019"]
[Site "Hull"]
[Date "2019.09.01"]
[Round "5.13"]
[White "Maladkar, Ritika"]
[Black "Anika Rachna Roy"]
[Result "1-0"]
[ECO "A10"]
[WhiteElo "1561"]
[BlackElo "1380"]
[Annotator "NA"]
[PlyCount "53"]
[EventDate "2019.08.30"]
[EventType "swiss"]
[EventCountry "ENG"]
[SourceTitle "playchess.com"]
[Source "ChessBase"]
[SourceQuality "1"]
[TimeControl "5400+30"]

1. c4 {[%emt 0:00:00]} b6 {[%emt 0:00:00]} 2. Nc3 {[%emt 0:00:00]} Bb7 {[%emt 0:00:00]} 3. e4 {[%emt 0:00:00]} e6 {[%emt 0:00:24]} 4. Nf3 {[%emt 0:00:31]} Nc6 {[%emt 0:00:31]} 5. g3 {[%emt 0:00:10]} g6 {[%emt 0:01:17]} 6. Bg2 {[%emt 0:00:13]} Bg7 {[%emt 0:00:11]} 7. O-O {[%emt 0:00:12]} Nge7 {[%emt 0:00:19]} 8. d3 {[%emt 0:00:30]} O-O {[%emt 0:00:22]} 9. Be3 {[%emt 0:01:12]} e5 {[%emt 0:07:07]} 10. d4 {[%emt 0:06:29]} exd4 {[%emt 0:01:08]} 11. Nxd4 {[%emt 0:00:27]} Ne5 {[%emt 0:01:24]} 12. b3 {[%emt 0:03:23]} f5 {[%emt 0:06:56]} 13. Rc1 {[%emt 0:07:38]} d6 {[%emt 0:06:32]} 14. Ne6 {[%emt 0:00:57]} Qd7 {[%emt 0:00:48]} 15. Nxf8 {[%emt 0:00:48]} Rxf8 {[%emt 0:00:20]} 16. f4 {[%emt 0:05:04]} Ng4 {[%emt 0:03:04]} 17. Bd4 {[%emt 0:01:57]} Nf6 {[%emt 0:03:21]} 18. Re1 {[%emt 0:07:56]} Ne8 {[%emt 0:05:21]} 19. b4 {[%emt 0:06:53]} Nc6 {[%emt 0:03:21]} 20. Bxg7 {[%emt 0:01:01]} Nxg7 {[%emt 0:00:17]} 21. e5 {[%emt 0:04:22]} Kh8 {[%emt 0:04:58]} 22. b5 {[%emt 0:01:54]} Nxe5 {[%emt 0:01:21]} 23. Rxe5 {[%emt 0:04:08]} Bxg2 {[%emt 0:01:35]} 24. Kxg2 {[%emt 0:00:14]} Qf7 {[%emt 0:01:33]} 25. Rd5 {[%emt 0:08:33]} Ne6 {[%emt 0:01:09]} 26. Qf3 {[%emt 0:04:44]} Nc5 {[%emt 0:00:49]} 27. Re1 {[%emt 0:02:33]} 1-0

[Event "ENG-ch Women 2019"]
[Site "Hull"]
[Date "2019.09.01"]
[Round "5.14"]
[White "Jayawarna, Tarini"]
[Black "Pettit, Felicity Ol"]
[Result "1-0"]
[ECO "B19"]
[WhiteElo "1337"]
[BlackElo "1233"]
[Annotator "NA"]
[PlyCount "51"]
[EventDate "2019.08.30"]
[EventType "swiss"]
[EventCountry "ENG"]
[SourceTitle "playchess.com"]
[Source "ChessBase"]
[SourceQuality "1"]
[TimeControl "5400+30"]

1. e4 {[%emt 0:00:00]} c6 {[%emt 0:00:00]} 2. d4 {[%emt 0:00:00]} d5 {[%emt 0:00:21]} 3. Nc3 {[%emt 0:00:00]} dxe4 {[%emt 0:00:11]} 4. Nxe4 {[%emt 0:00:00]} Bf5 {[%emt 0:00:10]} 5. Ng3 {[%emt 0:00:00]} Bg6 {[%emt 0:00:07]} 6. h4 {[%emt 0:00:00]} h6 {[%emt 0:00:10]} 7. h5 {[%emt 0:00:09]} Bh7 {[%emt 0:00:20]} 8. Nf3 {[%emt 0:00:06]} Nd7 {[%emt 0:01:19]} 9. Bd3 {[%emt 0:00:06]} Bxd3 {[%emt 0:00:48]} 10. Qxd3 {[%emt 0:00:03]} Ngf6 {[%emt 0:02:49]} 11. Bd2 {[%emt 0:00:33]} e6 {[%emt 0:02:01]} 12. O-O-O {[%emt 0:02:18]} Bd6 {[%emt 0:02:44]} 13. Ne4 {[%emt 0:04:26]} Nxe4 {[%emt 0:01:53]} 14. Qxe4 {[%emt 0:00:04]} O-O {[%emt 0:00:31]} 15. Kb1 {[%emt 0:01:56]} Qb6 {[%emt 0:02:25]} 16. g4 {[%emt 0:05:50]} Nf6 {[%emt 0:04:08]} 17. Qe2 {[%emt 0:01:52]} Nxg4 {[%emt 0:01:05]} 18. Rdg1 {[%emt 0:00:41]} Nf6 {[%emt 0:00:41]} 19. Bxh6 {[%emt 0:00:56]} Be7 {[%emt 0:14:16]} 20. Bxg7 {[%emt 0:18:42]} Kh7 {[%emt 0:00:38]} 21. Qd3+ {[%emt 0:00:35]} Ne4 {[%emt 0:02:28]} 22. Qxe4+ {[%emt 0:00:04]} f5 {[%emt 0:00:14]} 23. Qxe6 {[%emt 0:01:24]} Rfe8 {[%emt 0:07:36]} 24. Qg6+ {[%emt 0:00:22]} Kg8 {[%emt 0:00:09]} 25. Bh6+ {[%emt 0:00:18]} Kh8 {[%emt 0:00:08]} 26. Qg7# {[%emt 0:00:06] Kg8} 1-0

[Event "ENG-ch Women 2019"]
[Site "Hull"]
[Date "2019.09.01"]
[Round "5.15"]
[White "Chaban, Roxolana"]
[Black "Cakova, Monika"]
[Result "1-0"]
[ECO "B00"]
[WhiteElo "1281"]
[BlackElo "1150"]
[Annotator "NA"]
[PlyCount "81"]
[EventDate "2019.08.30"]
[EventType "swiss"]
[EventCountry "ENG"]
[SourceTitle "playchess.com"]
[Source "ChessBase"]
[SourceQuality "1"]
[TimeControl "5400+30"]

1. e4 {[%emt 0:00:00]} b6 {[%emt 0:00:00]} 2. d4 {[%emt 0:00:00]} Bb7 {[%emt 0:00:03]} 3. Bd3 {[%emt 0:00:30]} e6 {[%emt 0:00:18]} 4. Nf3 {[%emt 0:00:41]} c5 {[%emt 0:00:54]} 5. O-O {[%emt 0:01:00]} Nf6 {[%emt 0:01:15]} 6. Nc3 {[%emt 0:01:22]} Nc6 {[%emt 0:00:50]} 7. d5 {[%emt 0:07:23]} Nd4 {[%emt 0:03:04]} 8. dxe6 {[%emt 0:07:48]} Nxe6 {[%emt 0:02:29]} 9. b3 {[%emt 0:05:44]} Be7 {[%emt 0:01:25]} 10. Bb2 {[%emt 0:03:46]} O-O {[%emt 0:02:57]} 11. Re1 {[%emt 0:09:06]} Qc7 {[%emt 0:03:45]} 12. Nb5 {[%emt 0:00:00]} Qb8 {[%emt 0:03:34]} 13. c4 {[%emt 0:03:15]} a6 {[%emt 0:02:28]} 14. Nc3 {[%emt 0:02:12]} Nf4 {[%emt 0:03:05]} 15. Bc2 {[%emt 0:04:13]} Ng4 {[%emt 0:09:07]} 16. h3 {[%emt 0:15:18]} Ne5 {[%emt 0:01:03]} 17. Na4 {[%emt 0:05:05]} Nxf3+ {[%emt 0:05:51]} 18. Qxf3 {[%emt 0:00:48]} b5 {[%emt 0:01:11]} 19. Nb6 {[%emt 0:03:52]} Qd6 {[%emt 0:04:07]} 20. Nxa8 {[%emt 0:02:21]} Bxa8 {[%emt 0:00:11]} 21. Rad1 {[%emt 0:02:13]} Qc7 {[%emt 0:01:44]} 22. cxb5 {[%emt 0:02:41]} axb5 {[%emt 0:00:24]} 23. Qg4 {[%emt 0:02:51]} Ne6 {[%emt 0:02:17]} 24. Rc1 {[%emt 0:07:13]} f6 {[%emt 0:04:38]} 25. Bd3 {[%emt 0:02:28]} Qb7 {[%emt 0:03:54]} 26. Red1 {[%emt 0:01:32]} Ng5 {[%emt 0:05:11]} 27. h4 {[%emt 0:03:26]} Nf7 {[%emt 0:01:21]} 28. Bb1 {[%emt 0:01:33]} d6 {[%emt 0:02:24]} 29. Qe2 {[%emt 0:01:50]} Re8 {[%emt 0:02:21]} 30. Bd3 {[%emt 0:01:03]} b4 {[%emt 0:01:57]} 31. Bc4 {[%emt 0:00:42]} f5 {[%emt 0:00:44]} 32. Bd5 {[%emt 0:02:12]} Qb8 {[%emt 0:01:27]} 33. Bxa8 {[%emt 0:00:22]} Qxa8 {[%emt 0:00:14]} 34. Qc4 {[%emt 0:01:42]} fxe4 {[%emt 0:00:53]} 35. g3 {[%emt 0:00:29]} Rd8 {[%emt 0:02:34]} 36. Qc2 {[%emt 0:00:37]} Ne5 {[%emt 0:00:52]} 37. Bxe5 {[%emt 0:00:16]} dxe5 {[%emt 0:00:13]} 38. Rxd8+ {[%emt 0:00:32]} Bxd8 {[%emt 0:00:19]} 39. Qc4+ {[%emt 0:00:17]} Kh8 {[%emt 0:02:38]} 40. Qxc5 {[%emt 0:00:10]} Bf6 {[%emt 0:01:05]} 41. Qc8+ {[%emt 0:00:11]} 1-0